fUSD/lending_fUSD_20240725
["ID","MTS","AMOUNT","RATE_DAILY","PERIOD"]
[333143092,1721886639231,-500.0,0.00010958,2]
[333143094,1721886639241,-500.0,0.00010958,2]
[333143096,1721886639251,-500.0,0.00010958,2]
[333143098,1721886639262,-1254.17,0.00010958,2]
[333143100,1721886639272,-1254.17,0.00010958,2]
[333143102,1721886639282,-500.0,0.00010958,2]
[333143104,1721886639292,-500.0,0.00010958,2]
[333143108,1721886639326,-500.0,0.00010958,2]
[333143110,1721886639337,-500.0,0.00010958,2]
[333143113,1721886639348,-500.0,0.00010958,2]
[333143115,1721886639360,-500.0,0.00010958,2]
[333143117,1721886639370,-500.0,0.00010958,2]
[333143119,1721886639379,-500.0,0.00010958,2]
[333143121,1721886639389,-500.0,0.00010958,2]
[333143123,1721886639399,-225.04,0.00010959,2]
[333143125,1721886639409,-500.0,0.00010976,2]
[333143127,1721886639419,-500.0,0.00010976,2]
[333143129,1721886639428,-1921.36,0.00010976,2]
[333143131,1721886639438,-1952.09,0.00010976,2]
[333143133,1721886639448,-500.0,0.00010976,2]
[333143135,1721886639459,-830.64,0.00010976,2]
[333143137,1721886639468,-500.0,0.00010976,2]
[333143139,1721886639478,-1367.93,0.00010976,2]
[333143141,1721886639488,-1790.7,0.00010976,2]
[333143143,1721886639500,-233.39155149,0.00010976,2]
[333143145,1721886639509,-2736.0,0.00010976,2]
[333143147,1721886639519,-1065.89,0.00010976,2]
[333143149,1721886639528,-500.0,0.00010976,2]
[333143151,1721886639538,-1684.11,0.00010976,2]
[333143153,1721886639547,-558.54,0.00010976,2]
[333143155,1721886639557,-500.0,0.00010976,2]
[333143157,1721886639566,-1659.77,0.00010976,2]
[333143159,1721886639577,-801.57,0.00010976,2]
[333143161,1721886639589,-1442.69,0.00010976,2]
[333143163,1721886639599,-500.0,0.00010976,2]
[333143165,1721886639611,-507.45045785,0.00010976,2]
[333143167,1721886639621,-500.0,0.00010976,2]
[333143169,1721886639630,-766.15,0.00010976,2]
[333143171,1721886639639,-500.0,0.00010976,2]
[333143173,1721886639648,-500.0,0.00010976,2]
[333143175,1721886639658,-2192.88,0.00010976,2]
[333143177,1721886639667,-500.0,0.00010976,2]
[333143179,1721886639677,-3263.4,0.00010976,2]
[333143181,1721886639686,-2607.01,0.00010976,2]
[333143183,1721886639696,-500.0,0.00010976,2]
[333143185,1721886639706,-342.43056548,0.00010976,2]
[333143187,1721886639715,-2205.42,0.00010976,2]
[333143191,1721886639725,-1028.53,0.00010976,2]
[333143193,1721886639734,-1171.04,0.00010976,2]
[333143195,1721886639743,-629.11,0.00010977,2]
[333143197,1721886639753,-945.69,0.00010977,2]
[333143199,1721886639762,-258.17075524,0.00010977,2]
[333143203,1721886639772,-503.98117905,0.00010977,2]
[333143208,1721886639781,-507.9887872,0.00010977,2]
[333143212,1721886639791,-500.0,0.00010977,2]
[333143216,1721886639800,-500.0,0.00010977,2]
[333143220,1721886639809,-500.0,0.00010977,2]
[333143223,1721886639819,-323.07333526,0.00010977,2]
[333143226,1721886639828,-500.0,0.00010977,2]
[333143229,1721886639838,-664.61,0.00010977,2]
[333143233,1721886639847,-2683.38,0.00010977,2]
[333143236,1721886639858,-500.0,0.00010977,2]
[333143239,1721886639869,-500.0,0.00010977,2]
[333143242,1721886639878,-2951.89,0.00010977,2]
[333143245,1721886639888,-500.0,0.00010977,2]
[333143248,1721886639898,-500.0,0.00010977,2]
[333143250,1721886639908,-592.07,0.00010977,2]
[333143252,1721886639917,-293.45990223,0.00010977,2]
[333143254,1721886639927,-500.0,0.00010977,2]
[333143256,1721886639936,-302.0131337,0.00010977,2]
[333143258,1721886639946,-500.0,0.00010977,2]
[333143260,1721886639955,-438.06721039,0.00010977,2]
[333143262,1721886639965,-629.06769819,0.00010977,2]
[333143264,1721886639975,-500.0,0.00010977,2]
[333143266,1721886639984,-500.0,0.00010977,2]
[333143268,1721886639994,-2614.48,0.00010977,2]
[333143270,1721886640003,-500.0,0.00010977,2]
[333143272,1721886640012,-500.0,0.00010977,2]
[333143274,1721886640022,-500.0,0.00010977,2]
[333143276,1721886640031,-500.0,0.00010977,2]
[333143278,1721886640042,-500.0,0.00010977,2]
[333143280,1721886640051,-500.0,0.00010977,2]
[333143282,1721886640061,-506.82919755,0.00010977,2]
[333143284,1721886640070,-500.0,0.00010977,2]
[333143286,1721886640082,-500.0,0.00010977,2]
[333143288,1721886640094,-500.0,0.00010977,2]
[333143290,1721886640105,-500.0,0.00010977,2]
[333143293,1721886640117,-505.4531003,0.00010977,2]
[333143295,1721886640126,-4251.19,0.00010977,2]
[333143297,1721886640136,-500.0,0.00010977,2]
[333143299,1721886640146,-500.0,0.00010977,2]
[333143300,1721886640155,-500.0,0.00010977,2]
[333143302,1721886640165,-500.0,0.00010977,2]
[333143304,1721886640175,-4444.47,0.00010977,2]
[333143306,1721886640184,-230.62647619,0.00010977,2]
[333143308,1721886640197,-269.37352381,0.00010977,2]
[333143310,1721886640207,-237.13753534,0.00010977,2]
[333143312,1721886640217,-500.0,0.00010977,2]
[333143314,1721886640226,-4527.99,0.00010977,2]
[333143316,1721886640237,-500.0,0.00010977,2]
[333143318,1721886640247,-1238.15333218,0.00010977,2]
[333143333,1721886640382,-488.71922223,0.00010977,2]
[333143335,1721886640393,-63.05744559,0.00010977,2]
[333143337,1721886640402,-433.01879884,0.00010977,2]
[333143339,1721886640413,-66.98120116,0.00010977,2]
[333143341,1721886640423,-334.59626837,0.00010977,2]
[333143344,1721886640439,-165.40373163,0.00010977,2]
[333143346,1721886640449,-966.18855433,0.00010977,2]
[333143349,1721886640461,-1127.26079413,0.00010977,2]
[333143354,1721886640480,-2003.05065154,0.00010977,2]
[333143357,1721886640490,-500.0,0.00010977,2]
[333143359,1721886640503,-5932.39,0.00010977,2]
[333143361,1721886640512,-815.94,0.00010977,2]
[333143363,1721886640521,-500.0,0.00010977,2]
[333143365,1721886640531,-500.0,0.00010977,2]
[333143372,1721886640541,-500.0,0.00010977,2]
[333143374,1721886640601,-500.0,0.00010977,2]
[333143376,1721886640613,-500.0,0.00010977,2]
[333143378,1721886640623,-159.61327961,0.00010977,2]
[333143380,1721886640632,-585.37,0.00010977,2]
[333143382,1721886640642,-500.0,0.00010977,2]
[333143384,1721886640650,-500.0,0.00010977,2]
[333143385,1721886640660,-500.0,0.00010977,2]
[333143387,1721886640669,-500.0,0.00010977,2]
[333143389,1721886640678,-3656.14,0.00010977,2]
[333143391,1721886640688,-522.23,0.00010977,2]
[333143393,1721886640697,-6789.85,0.00010977,2]
[333143395,1721886640706,-3807.22,0.00010977,2]
[333143397,1721886640715,-1765.73,0.00010977,2]
[333143399,1721886640724,-2658.7,0.00010977,2]
[333143401,1721886640734,-964.42,0.00010977,2]
[333143403,1721886640743,-385.37126487,0.00010978,2]
[333143405,1721886640752,-500.0,0.00010978,2]
[333143407,1721886640762,-500.0,0.00010978,2]
[333143409,1721886640771,-500.0,0.00010978,2]
[333143411,1721886640781,-500.0,0.00010978,2]
[333143413,1721886640790,-500.0,0.00010978,2]
[333143415,1721886640799,-500.0,0.00010978,2]
[333143417,1721886640808,-500.0,0.00010978,2]
[333143419,1721886640817,-500.0,0.00010978,2]
[333143421,1721886640826,-500.0,0.00010978,2]
[333143423,1721886640836,-1828.17,0.00010978,2]
[333143425,1721886640845,-319.69367342,0.00010978,2]
[333143427,1721886640855,-629.11,0.00010978,2]
[333143429,1721886640867,-414.23098045,0.00010978,2]
[333143431,1721886640876,-601.69,0.00010978,2]
[333143433,1721886640885,-945.69,0.00010978,2]
[333143435,1721886640894,-500.0,0.00010978,2]
[333143437,1721886640904,-2098.34,0.00010978,2]
[333143439,1721886640913,-728.71,0.00010978,2]
[333143441,1721886640922,-1140.54,0.00010978,2]
[333143443,1721886640931,-558.87,0.00010978,2]
[333143445,1721886640940,-2557.2,0.00010978,2]
[333143447,1721886640949,-1267.82,0.00010978,2]
[333143449,1721886640958,-500.0,0.00010978,2]
[333143451,1721886640968,-1281.65,0.00010978,2]
[333143453,1721886640977,-500.0,0.00010978,2]
[333143455,1721886640986,-467.4900168,0.00010978,2]
[333143457,1721886640995,-1768.76,0.00010978,2]
[333143459,1721886641004,-500.0,0.00010978,2]
[333143461,1721886641013,-500.0,0.00010978,2]
[333143463,1721886641022,-1698.37,0.00010978,2]
[333143465,1721886641030,-1339.25,0.00010978,2]
[333143467,1721886641039,-500.0,0.00010978,2]
[333143469,1721886641048,-1170.29,0.00010978,2]
[333143471,1721886641057,-664.61,0.00010978,2]
[333143472,1721886641066,-500.0,0.00010978,2]
[333143474,1721886641075,-500.0,0.00010978,2]
[333143476,1721886641084,-2683.38,0.00010978,2]
[333143478,1721886641093,-500.0,0.00010978,2]
[333143480,1721886641102,-500.0,0.00010978,2]
[333143482,1721886641114,-2951.89,0.00010978,2]
[333143484,1721886641123,-1254.17,0.00010978,2]
[333143486,1721886641132,-500.0,0.00010978,2]
[333143488,1721886641142,-500.0,0.00010978,2]
[333143490,1721886641150,-592.07,0.00010978,2]
[333143492,1721886641159,-500.0,0.00010978,2]
[333143494,1721886641168,-500.0,0.00010978,2]
[333143496,1721886641177,-500.0,0.00010978,2]
[333143498,1721886641186,-500.0,0.00010978,2]
[333143500,1721886641195,-500.0,0.00010978,2]
[333143502,1721886641204,-2614.48,0.00010978,2]
[333143503,1721886641212,-578.8925007,0.00010978,2]
[333143505,1721886641221,-500.0,0.00010978,2]
[333143507,1721886641230,-500.0,0.00010978,2]
[333143509,1721886641239,-500.0,0.00010978,2]
[333143511,1721886641248,-500.0,0.00010978,2]
[333143513,1721886641258,-1563.53,0.00010978,2]
[333143515,1721886641267,-500.0,0.00010978,2]
[333143517,1721886641276,-500.0,0.00010978,2]
[333143519,1721886641285,-500.0,0.00010978,2]
[333143521,1721886641294,-500.0,0.00010978,2]
[333143523,1721886641303,-505.48634313,0.00010978,2]
[333143525,1721886641312,-4251.19,0.00010978,2]
[333143527,1721886641321,-500.0,0.00010978,2]
[333143529,1721886641329,-500.0,0.00010978,2]
[333143531,1721886641338,-500.0,0.00010978,2]
[333143533,1721886641347,-500.0,0.00010978,2]
[333143535,1721886641361,-500.0,0.00010978,2]
[333143537,1721886641370,-1921.36,0.00010978,2]
[333143539,1721886641379,-1952.09,0.00010978,2]
[333143541,1721886641388,-500.0,0.00010978,2]
[333143542,1721886641397,-4444.47,0.00010978,2]
[333143544,1721886641406,-500.0,0.00010978,2]
[333143546,1721886641414,-500.0,0.00010978,2]
[333143548,1721886641423,-633.96010944,0.00010978,2]
[333143550,1721886641433,-4538.69,0.00010978,2]
[333143552,1721886641443,-500.0,0.00010978,2]
[333143554,1721886641452,-4527.99,0.00010978,2]
[333143556,1721886641461,-500.0,0.00010978,2]
[333143558,1721886641471,-1789.93,0.00010978,2]
[333143560,1721886641480,-830.64,0.00010978,2]
[333143562,1721886641490,-1485.69,0.00010978,2]
[333143564,1721886641504,-500.0,0.00010978,2]
[333143566,1721886641513,-500.0,0.00010978,2]
[333143568,1721886641522,-585.47,0.00010978,2]
[333143570,1721886641531,-4096.5,0.00010978,2]
[333143572,1721886641541,-500.0,0.00010978,2]
[333143574,1721886641550,-585.47,0.00010978,2]
[333143576,1721886641559,-4028.9,0.00010978,2]
[333143578,1721886641568,-5932.39,0.00010978,2]
[333143580,1721886641578,-500.0,0.00010978,2]
[333143582,1721886641587,-1367.93,0.00010978,2]
[333143584,1721886641596,-815.94,0.00010978,2]
[333143586,1721886641605,-1790.7,0.00010978,2]
[333143588,1721886641617,-2736.0,0.00010978,2]
[333143590,1721886641626,-1065.89,0.00010978,2]
[333143592,1721886641635,-500.0,0.00010978,2]
[333143594,1721886641644,-1684.11,0.00010978,2]
[333143596,1721886641653,-558.54,0.00010978,2]
[333143598,1721886641662,-500.0,0.00010978,2]
[333143600,1721886641671,-500.0,0.00010978,2]
[333143602,1721886641680,-215.48,0.00010978,2]
[333143604,1721886641689,-1659.77,0.00010978,2]
[333143606,1721886641697,-801.57,0.00010978,2]
[333143608,1721886641706,-1442.69,0.00010978,2]
[333143610,1721886641715,-500.0,0.00010978,2]
[333143611,1721886641724,-500.0,0.00010978,2]
[333143613,1721886641733,-585.37,0.00010978,2]
[333143615,1721886641742,-500.0,0.00010978,2]
[333143617,1721886641751,-500.0,0.00010978,2]
[333143619,1721886641760,-766.15,0.00010978,2]
[333143621,1721886641769,-500.0,0.00010978,2]
[333143623,1721886641778,-500.0,0.00010978,2]
[333143625,1721886641787,-500.0,0.00010978,2]
[333143627,1721886641796,-2192.88,0.00010978,2]
[333143629,1721886641805,-500.0,0.00010978,2]
[333143630,1721886641814,-3656.14,0.00010978,2]
[333143631,1721886641823,-3263.4,0.00010978,2]
[333143632,1721886641832,-522.23,0.00010978,2]
[333143633,1721886641841,-2607.01,0.00010978,2]
[333143634,1721886641850,-500.0,0.00010978,2]
[333143635,1721886641860,-2205.42,0.00010978,2]
[333143636,1721886641870,-6789.85,0.00010978,2]
[333143637,1721886641879,-3807.22,0.00010978,2]
[333143638,1721886641888,-1765.73,0.00010978,2]
[333143639,1721886641897,-2658.7,0.00010978,2]
[333143640,1721886641906,-1028.53,0.00010978,2]
[333143641,1721886641916,-1171.04,0.00010978,2]
[333143642,1721886641925,-964.42,0.00010978,2]
[333143643,1721886641933,-500.0,0.00010979,2]
[333143645,1721886641942,-322.69,0.00010979,2]
[333143646,1721886641952,-247.98,0.00010979,2]
[333143648,1721886641961,-500.0,0.00010979,2]
[333143650,1721886641970,-500.0,0.00010979,2]
[333143652,1721886641979,-500.0,0.00010979,2]
[333143654,1721886641988,-584.07,0.00010979,2]
[333143656,1721886641997,-1828.17,0.00010979,2]
[333143658,1721886642006,-1828.17,0.00010979,2]
[333143660,1721886642015,-1828.17,0.00010979,2]
[333143662,1721886642025,-1828.17,0.00010979,2]
[333143664,1721886642035,-601.69,0.00010979,2]
[333143666,1721886642044,-601.69,0.00010979,2]
[333143668,1721886642053,-601.69,0.00010979,2]
[333143670,1721886642062,-601.69,0.00010979,2]
[333143672,1721886642071,-500.0,0.00010979,2]
[333143674,1721886642080,-500.0,0.00010979,2]
[333143676,1721886642090,-500.0,0.00010979,2]
[333143678,1721886642099,-422.68724654,0.00010979,2]
[333143680,1721886642108,-2098.34,0.00010979,2]
[333143682,1721886642120,-2098.34,0.00010979,2]
[333143684,1721886642129,-2098.34,0.00010979,2]
[333143685,1721886642139,-2098.34,0.00010979,2]
[333143687,1721886642152,-728.71,0.00010979,2]
[333143689,1721886642162,-728.71,0.00010979,2]
[333143691,1721886642171,-728.71,0.00010979,2]
[333143693,1721886642180,-728.71,0.00010979,2]
[333143695,1721886642189,-1140.54,0.00010979,2]
[333143697,1721886642198,-1140.54,0.00010979,2]
[333143699,1721886642207,-1140.54,0.00010979,2]
[333143701,1721886642216,-1140.54,0.00010979,2]
[333143703,1721886642226,-558.87,0.00010979,2]
[333143705,1721886642235,-558.87,0.00010979,2]
[333143707,1721886642244,-558.87,0.00010979,2]
[333143709,1721886642253,-558.87,0.00010979,2]
[333143711,1721886642263,-2557.2,0.00010979,2]
[333143713,1721886642272,-2557.2,0.00010979,2]
[333143715,1721886642281,-2557.2,0.00010979,2]
[333143717,1721886642290,-2557.2,0.00010979,2]
[333143719,1721886642299,-1267.82,0.00010979,2]
[333143721,1721886642308,-1267.82,0.00010979,2]
[333143723,1721886642318,-1267.82,0.00010979,2]
[333143725,1721886642327,-1267.82,0.00010979,2]
[333143727,1721886642336,-500.0,0.00010979,2]
[333143729,1721886642345,-540.80932232,0.00010979,2]
[333143731,1721886642358,-1281.65,0.00010979,2]
[333143733,1721886642371,-1281.65,0.00010979,2]
[333143735,1721886642380,-1281.65,0.00010979,2]
[333143737,1721886642389,-1281.65,0.00010979,2]
[333143739,1721886642398,-1768.76,0.00010979,2]
[333143741,1721886642407,-1768.76,0.00010979,2]
[333143743,1721886642416,-1768.76,0.00010979,2]
[333143745,1721886642426,-1768.76,0.00010979,2]
[333143747,1721886642435,-500.0,0.00010979,2]
[333143749,1721886642445,-500.0,0.00010979,2]
[333143751,1721886642454,-500.0,0.00010979,2]
[333143753,1721886642463,-500.0,0.00010979,2]
[333143755,1721886642471,-511.70367233,0.00010979,2]
[333143757,1721886642481,-1698.37,0.00010979,2]
[333143759,1721886642494,-1698.37,0.00010979,2]
[333143761,1721886642513,-1698.37,0.00010979,2]
[333143763,1721886642527,-1698.37,0.00010979,2]
[333143766,1721886642536,-1339.25,0.00010979,2]
[333143769,1721886642545,-1339.25,0.00010979,2]
[333143771,1721886642554,-1339.25,0.00010979,2]
[333143773,1721886642563,-1339.25,0.00010979,2]
[333143775,1721886642572,-1170.29,0.00010979,2]
[333143777,1721886642581,-1170.29,0.00010979,2]
[333143779,1721886642590,-1170.29,0.00010979,2]
[333143781,1721886642600,-1170.29,0.00010979,2]
[333143782,1721886642611,-500.0,0.00010979,2]
[333143785,1721886642622,-500.0,0.00010979,2]
[333143787,1721886642631,-500.0,0.00010979,2]
[333143788,1721886642640,-500.0,0.00010979,2]
[333143790,1721886642649,-1254.17,0.00010979,2]
[333143792,1721886642658,-1254.17,0.00010979,2]
[333143794,1721886642667,-1254.17,0.00010979,2]
[333143796,1721886642676,-1254.17,0.00010979,2]
[333143798,1721886642684,-500.0,0.00010979,2]
[333143800,1721886642694,-500.0,0.00010979,2]
[333143802,1721886642703,-500.0,0.00010979,2]
[333143804,1721886642711,-500.0,0.00010979,2]
[333143806,1721886642720,-225.83419847,0.00010979,2]
[333143808,1721886642735,-274.16580153,0.00010979,2]
[333143810,1721886642744,-500.0,0.00010979,2]
[333143812,1721886642753,-500.0,0.00010979,2]
[333143814,1721886642763,-500.0,0.00010979,2]
[333143816,1721886642772,-500.0,0.00010979,2]
[333143818,1721886642781,-500.0,0.00010979,2]
[333143820,1721886642791,-500.0,0.00010979,2]
[333143822,1721886642800,-500.0,0.00010979,2]
[333143824,1721886642809,-500.0,0.00010979,2]
[333143826,1721886642818,-500.0,0.00010979,2]
[333143828,1721886642828,-500.0,0.00010979,2]
[333143829,1721886642837,-500.0,0.00010979,2]
[333143830,1721886642846,-1268.28,0.00010984,2]
[333143832,1721886642856,-38358.0,0.00010984,2]
[333143834,1721886642867,-1202.0,0.00010984,2]
[333143836,1721886642876,-1669.0,0.00010984,2]
[333143838,1721886642885,-629.11,0.00010989,2]
[333143840,1721886642894,-945.69,0.00010989,2]
[333143842,1721886642903,-500.0,0.00010989,2]
[333143844,1721886642913,-500.0,0.00010989,2]
[333143846,1721886642922,-664.61,0.00010989,2]
[333143847,1721886642931,-500.0,0.00010989,2]
[333143850,1721886642942,-2683.38,0.00010989,2]
[333143853,1721886642951,-500.0,0.00010989,2]
[333143856,1721886642961,-2951.89,0.00010989,2]
[333143859,1721886642970,-500.0,0.00010989,2]
[333143862,1721886642980,-500.0,0.00010989,2]
[333143865,1721886642989,-592.07,0.00010989,2]
[333143868,1721886642998,-500.0,0.00010989,2]
[333143871,1721886643008,-500.0,0.00010989,2]
[333143874,1721886643018,-500.0,0.00010989,2]
[333143877,1721886643027,-500.0,0.00010989,2]
[333143879,1721886643037,-2614.48,0.00010989,2]
[333143881,1721886643046,-500.0,0.00010989,2]
[333143882,1721886643056,-500.0,0.00010989,2]
[333143884,1721886643065,-499.25,0.00010989,2]
[333143885,1721886643074,-500.0,0.00010989,2]
[333143887,1721886643085,-500.0,0.00010989,2]
[333143889,1721886643095,-500.0,0.00010989,2]
[333143891,1721886643104,-500.0,0.00010989,2]
[333143893,1721886643115,-4251.19,0.00010989,2]
[333143895,1721886643124,-366.05,0.00010989,2]
[333143897,1721886643133,-500.0,0.00010989,2]
[333143899,1721886643142,-500.0,0.00010989,2]
[333143901,1721886643151,-1921.36,0.00010989,2]
[333143903,1721886643160,-1952.09,0.00010989,2]
[333143905,1721886643170,-500.0,0.00010989,2]
[333143907,1721886643180,-4444.47,0.00010989,2]
[333143908,1721886643190,-542.61,0.00010989,2]
[333143910,1721886643199,-169.7,0.00010989,2]
[333143912,1721886643210,-4527.99,0.00010989,2]
[333143914,1721886643220,-362.91,0.00010989,2]
[333143916,1721886643229,-1789.93,0.00010989,2]
[333143918,1721886643239,-830.64,0.00010989,2]
[333143920,1721886643249,-500.0,0.00010989,2]
[333143922,1721886643258,-168.15,0.00010989,2]
[333143924,1721886643269,-4096.5,0.00010989,2]
[333143926,1721886643279,-571.46,0.00010989,2]
[333143928,1721886643289,-585.47,0.00010989,2]
[333143930,1721886643300,-5932.39,0.00010989,2]
[333143932,1721886643309,-500.0,0.00010989,2]
[333143934,1721886643319,-1367.93,0.00010989,2]
[333143936,1721886643330,-815.94,0.00010989,2]
[333143938,1721886643340,-1790.7,0.00010989,2]
[333143939,1721886643350,-2736.0,0.00010989,2]
[333143942,1721886643361,-1065.89,0.00010989,2]
[333143943,1721886643370,-500.0,0.00010989,2]
[333143945,1721886643379,-1684.11,0.00010989,2]
[333143947,1721886643388,-558.54,0.00010989,2]
[333143949,1721886643398,-500.0,0.00010989,2]
[333143951,1721886643408,-500.0,0.00010989,2]
[333143953,1721886643418,-1659.77,0.00010989,2]
[333143955,1721886643427,-801.57,0.00010989,2]
[333143957,1721886643437,-1442.69,0.00010989,2]
[333143958,1721886643446,-500.0,0.00010989,2]
[333143961,1721886643457,-585.37,0.00010989,2]
[333143963,1721886643466,-500.0,0.00010989,2]
[333143965,1721886643478,-500.0,0.00010989,2]
[333143967,1721886643488,-500.0,0.00010989,2]
[333143969,1721886643498,-766.15,0.00010989,2]
[333143971,1721886643508,-500.0,0.00010989,2]
[333143973,1721886643519,-500.0,0.00010989,2]
[333143975,1721886643529,-500.0,0.00010989,2]
[333143977,1721886643539,-2192.88,0.00010989,2]
[333143979,1721886643550,-500.0,0.00010989,2]
[333143981,1721886643559,-3656.14,0.00010989,2]
[333143983,1721886643568,-3263.4,0.00010989,2]
[333143984,1721886643578,-522.23,0.00010989,2]
[333143986,1721886643589,-2607.01,0.00010989,2]
[333143988,1721886643600,-500.0,0.00010989,2]
[333143990,1721886643610,-2205.42,0.00010989,2]
[333143992,1721886643619,-6789.85,0.00010989,2]
[333143994,1721886643628,-3807.22,0.00010989,2]
[333143996,1721886643637,-1765.73,0.00010989,2]
[333143998,1721886643651,-2658.7,0.00010989,2]
[333144000,1721886643662,-1028.53,0.00010989,2]
[333144002,1721886643671,-1171.04,0.00010989,2]
[333144004,1721886643680,-964.42,0.00010989,2]
[333144006,1721886643690,-300.4114864,0.0001099,2]
[333144008,1721886643700,-253.92596233,0.0001099,2]
[333144010,1721886643710,-500.0,0.0001099,2]
[333144011,1721886643720,-500.0,0.0001099,2]
[333144013,1721886643729,-500.0,0.0001099,2]
[333144015,1721886643738,-500.0,0.0001099,2]
[333144017,1721886643749,-1828.17,0.0001099,2]
[333144019,1721886643758,-601.69,0.0001099,2]
[333144021,1721886643767,-2098.34,0.0001099,2]
[333144023,1721886643776,-728.71,0.0001099,2]
[333144025,1721886643785,-1140.54,0.0001099,2]
[333144027,1721886643794,-558.87,0.0001099,2]
[333144029,1721886643803,-2557.2,0.0001099,2]
[333144031,1721886643813,-1267.82,0.0001099,2]
[333144033,1721886643822,-1281.65,0.0001099,2]
[333144035,1721886643832,-1768.76,0.0001099,2]
[333144037,1721886643841,-500.0,0.0001099,2]
[333144039,1721886643850,-1698.37,0.0001099,2]
[333144041,1721886643861,-1339.25,0.0001099,2]
[333144043,1721886643871,-1170.29,0.0001099,2]
[333144045,1721886643880,-500.0,0.0001099,2]
[333144047,1721886643890,-1254.17,0.0001099,2]
[333144049,1721886643899,-500.0,0.0001099,2]
[333144051,1721886643908,-1563.53,0.0001099,2]
[333144053,1721886643918,-500.0,0.0001099,2]
[333144055,1721886643929,-500.0,0.0001099,2]
[333144057,1721886643938,-500.0,0.0001099,2]
[333144059,1721886643948,-4538.69,0.0001099,2]
[333144061,1721886643958,-1485.69,0.0001099,2]
[333144063,1721886643968,-500.0,0.0001099,2]
[333144065,1721886643977,-4028.9,0.0001099,2]
[333144068,1721886643987,-1828.17,0.00010991,2]
[333144070,1721886643998,-601.69,0.00010991,2]
[333144072,1721886644008,-2098.34,0.00010991,2]
[333144074,1721886644018,-728.71,0.00010991,2]
[333144076,1721886644027,-1140.54,0.00010991,2]
[333144078,1721886644037,-558.87,0.00010991,2]
[333144080,1721886644047,-2557.2,0.00010991,2]
[333144082,1721886644058,-1267.82,0.00010991,2]
[333144084,1721886644068,-1281.65,0.00010991,2]
[333144086,1721886644077,-1768.76,0.00010991,2]
[333144088,1721886644086,-500.0,0.00010991,2]
[333144090,1721886644096,-1698.37,0.00010991,2]
[333144091,1721886644105,-1339.25,0.00010991,2]
[333144093,1721886644115,-1170.29,0.00010991,2]
[333144095,1721886644124,-500.0,0.00010991,2]
[333144097,1721886644133,-1254.17,0.00010991,2]
[333144099,1721886644143,-297.81157986,0.00010991,2]
[333144101,1721886644155,-202.18842014,0.00010991,2]
[333144103,1721886644164,-500.0,0.00010991,2]
[333144105,1721886644174,-500.0,0.00010991,2]
[333144107,1721886644183,-19.45952685,0.00010991,2]
[333144109,1721886644194,-480.54047315,0.00010991,2]
[333144111,1721886644203,-629.11,0.00010994,2]
[333144113,1721886644212,-945.69,0.00010994,2]
[333144115,1721886644221,-468.83693565,0.00010994,2]
[333144117,1721886644231,-500.0,0.00010994,2]
[333144119,1721886644240,-664.61,0.00010994,2]
[333144121,1721886644249,-500.0,0.00010994,2]